Cogmind - Beta 13 *** ADVENTURER MODE // 2024.08.02 @ 22:18:44 Player: AnotherZach Result: Self-destructed Performance ------------- Evolutions (7) 3500 Regions Visited (19) 3800 Robots Destroyed (454) 2270 Value Destroyed (17292) 17292 Prototype IDs (44) 880 Alien Tech Used (2) 400 Bonus (13406) 13406 TOTAL SCORE: 41548 Bonus ------- Triggered High Security 500 Triggered Max Security 1000 High Alert Combat Kills 5624 Follower Combat Kills 2224 Entered Garrisons 200 Used RIF Installer 1000 Aligned with FarCom 300 Built Enhanced Grunts 300 Met R17 at Cetus 500 Met R17 at Research 2000 Scanned by Researcher 500 Friendly Fire -742 Cogmind --------- Core Integrity 511/1300 Matter 264/300 Energy 29/500 System Corruption 1% Temperature Cool (18) Movement Hovering (210) Ox1 Location -3/Quarantine Parts ------- > --- POWER (2) -------- (None) > --- PROPULSION (6) --- Hovering Siege-Antigrav Exoskeleton > --- UTILITY (9) ------ Large Storage Unit Improved Energy Well Quantum Shading Machine Enhanced Optical Array Improved Launcher Guidance Computer Centrium Medium Armor Plating Improved System Shield > --- WEAPON (4) ------- (None) > --- INVENTORY (15) --- Matter Compressor (250) Long-range Terrain Scanner Advanced Melee Analysis Suite Improved Powered Armor Phase Armor Faulty Experimental Thermal Shield Antimissile System Long-range Tractor Beam Dimensional Node Initializer Subatomic Replicator Peak State ------------ > --- POWER ------------ Light Particle Reactor Multi-Particle Reactor > --- PROPULSION ------- Hovering Siege-Antigrav Exoskeleton Impulse Thruster Impulse Thruster Array > --- UTILITY ---------- Armored Scrap Engine Advanced Coolant Injector Large Storage Unit Gravity Neutralizer Enhanced Optical Array Improved Launcher Guidance Computer Improved Hacking Suite Improved System Shield > --- WEAPON ----------- Cooled Plasma Rifle Hvy. Thermic Plasma Construct/C Force Lance > --- INVENTORY -------- Improved Energy Well Matter Compressor Quantum Shading Machine Long-range Terrain Scanner Advanced Melee Analysis Suite Centrium Medium Armor Plating Improved Powered Armor Phase Armor Experimental Thermal Shield Antimissile System Long-range Tractor Beam Dimensional Node Initializer Subatomic Replicator Heavy Shock Bomb Launcher [Rating: 151] Favorites ----------- Power Heavy Deuterium Engine Engine Heavy Deuterium Engine Power Core Micro Fission Core Reactor Constructs Propulsion Constructs Treads Light Treads Leg Potential Leg Wheel Compact Wheel Hover Unit Constructs Flight Unit Impulse Thruster Array Utility Huge Storage Unit Device Armored Scrap Engine Storage Huge Storage Unit Processor Launcher Guidance Computer Hackware Advanced Hacking Suite Protection Centrium Medium Armor Plating Weapon Rocket Launcher Energy Gun Cooled Pulse Rifle Energy Cannon Constructs Ballistic Gun High-powered Shotgun Ballistic Cannon Heavy Mass Driver Launcher Rocket Launcher Special Weapon Improved Plasma Cutter Slashing Weapon Axe Piercing Weapon Force Lance Special Melee Weapon Improved Datajack Build | -11 -10 -10 -9 -9 -9 -8 -8 -7 -7 -7 -5 -5 -5 -5 -5 -5 -4 -3 -3 ------- Run | Yrd Mat Min Mat Min Exi Min Mat Fac Sto Rec Fac Gar Ext Cet Arc Hub Fac Res Qua Slots Evolved 14 | . . . 2 . . . 2 2 . . 4 . . . . . 2 2 . Power 1 | . . . . . . . . . . . 1 . . . . . . . . Propulsion 4 | . . . 1 . . . 1 2 . . . . . . . . . . . Utility 7 | . . . 1 . . . 1 . . . 3 . . . . . 1 1 . Weapon 2 | . . . . . . . . . . . . . . . . . 1 1 . Parts Attached 376 | 7 2 4 33 . . . 26 32 25 27 20 31 29 5 9 2 74 35 15 Power 32 | 1 . 1 3 . . . 1 4 2 . 1 3 3 . 1 . 7 4 1 Engine 14 | 1 . 1 3 . . . 1 1 2 . 1 . 1 . . . 2 1 . Core 9 | . . . . . . . . 3 . . . 3 2 . . . 1 . . Reactor 9 | . . . . . . . . . . . . . . . 1 . 4 3 1 Propulsion 60 | 2 . . 13 . . . 7 10 5 13 . 1 2 . . . 3 3 1 Treads 16 | . . . 10 . . . 3 . 1 . . 1 1 . . . . . . Leg 16 | . . . . . . . . 10 1 1 . . 1 . . . 3 . . Wheel 24 | 2 . . 3 . . . 4 . 3 12 . . . . . . . . . Hover . | . . . . . . . . . . . . . . . . . . . . Flight 4 | . . . . . . . . . . . . . . . . . . 3 1 Utility 148 | 2 2 . 8 . . . 8 9 3 4 12 15 14 3 3 2 35 18 10 Device 72 | 1 . . 4 . . . 1 3 . 1 4 11 8 2 3 2 16 9 7 Storage 12 | 1 2 . . . . . . 1 . . . . . . . . 4 3 1 Processor 12 | . . . 1 . . . . 2 . . . . 2 . . . 4 3 . Hackware 18 | . . . . . . . 1 3 . . 3 . 4 . . . 5 1 1 Protection 34 | . . . 3 . . . 6 . 3 3 5 4 . 1 . . 6 2 1 Artifact . | . . . . . . . . . . . . . . . . . . . . Weapon 136 | 2 . 3 9 . . . 10 9 15 10 7 12 10 2 5 . 29 10 3 Energy Gun 31 | 2 . 2 2 . . . 4 1 3 . . 3 5 1 1 . 3 3 1 Energy Cannon 8 | . . . 4 . . . . . 1 . . . . 1 . . . 2 . Ballistic Gun 17 | . . . . . . . 2 . 1 2 . 2 . . 1 . 7 2 . Ballistic Cannon 2 | . . . . . . . . . . . . 1 . . . . 1 . . Launcher 37 | . . 1 2 . . . 4 4 6 1 3 4 1 . . . 9 1 1 Special Weapon 21 | . . . . . . . . 1 1 3 2 . 3 . 3 . 8 . . Impact Weapon . | . . . . . . . . . . . . . . . . . . . . Slashing Weapon 17 | . . . 1 . . . . 3 3 4 2 2 . . . . . 2 . Piercing Weapon 2 | . . . . . . . . . . . . . . . . . 1 . 1 Special Melee Weapon 1 | . . . . . . . . . . . . . 1 . . . . . . Unidentified Prototypes 18 | . . . . . . . 2 2 4 . . . . 2 . . 1 3 4 Corrupted Parts 2 | . . . . . . . . . . . 2 . . . . . . . . System Corruption 2 | . . . . . . . . . . . 2 . . . . . . . . Parts Lost 88 | . . 2 1 . . . 13 6 2 1 1 10 3 1 . . 32 3 13 Power 19 | . . 1 1 . . . . 1 . . . 3 1 . . . 8 2 2 Propulsion 21 | . . . . . . . 6 3 2 1 . 1 1 . . . 4 . 3 Utility 29 | . . . . . . . 5 . . . 1 5 1 . . . 10 1 6 Weapon 19 | . . 1 . . . . 2 2 . . . 1 . 1 . . 10 . 2 Highest Loss Streak 12 | . . 2 1 . . . 4 3 1 1 1 7 2 1 . . 4 1 12 To Critical Strikes 1 | . . . . . . . . . . . . 1 . . . . . . . Average Slot Usage (%) 78 | . 100 97 99 100 100 100 93 94 92 75 67 57 66 62 63 64 61 71 64 Engine 4 | . 14 13 10 11 11 11 9 . 6 7 11 1 1 . . . . . . Core 2 | . . . . . . . . 6 . . . 6 9 11 5 5 3 . . Reactor 1 | . . . . . . . . . . . . . . . 4 5 3 6 6 Treads 6 | . . . 29 33 33 33 21 . . . . 3 5 . . 4 . . . Leg 8 | . . . . . . . . 41 32 3 9 . 2 5 2 . 5 . . Wheel 5 | . 28 28 3 . . . 10 . 10 23 . . . . . . . . . Device 11 | . 14 14 13 11 11 11 11 5 . 6 11 15 20 10 16 17 15 16 14 Storage 7 | . 14 14 11 11 11 11 9 7 7 7 5 5 5 5 5 5 5 4 4 Processor 3 | . . . . . . . . 5 7 7 5 3 . . . . . 10 10 Hackware 2 | . . . . . . . . 8 2 . . . 6 15 5 5 6 . 4 Protection 4 | . . . 8 11 11 11 14 . 6 1 9 5 . 2 5 5 4 3 . Energy Gun 2 | . 28 20 4 . . . 1 . . . . 1 7 6 3 . 3 1 2 Ballistic Gun 2 | . . . . . . . 3 . . 7 3 2 . . 5 11 6 3 . Launcher 3 | . . 5 8 11 11 11 4 8 7 . 1 1 1 . . . 1 . . Slashing Weapon 3 | . . . 4 11 11 11 7 5 4 5 1 2 . . . . . 2 3 Naked Turns . | . . . . . . . . . . . . . . . . . . . . Heaviest Build 154 | 15 90 91 108 100 100 100 107 98 125 111 123 142 128 122 132 132 154 90 64 Greatest Support 163 | 32 32 32 66 66 66 66 66 130 110 113 113 135 142 142 163 163 163 87 69 Greatest Overweight (x) 11 | . 2 2 2 1 1 1 8 . 1 11 1 1 1 . 1 . 1 3 1 Average Overweight (x) . | . 1 2 1 1 1 1 1 . . 1 . . . . . . . . . Largest Inventory Capacity 25 | 8 25 25 25 25 25 25 25 25 25 25 25 25 25 25 25 25 25 15 15 Average Capacity 23 | 7 20 25 25 25 25 25 25 25 25 25 25 25 25 25 25 25 21 15 15 Most Carried 25 | 6 21 25 25 25 25 25 25 25 25 25 25 25 25 24 25 25 25 15 15 Average Carried 22 | 3 14 22 24 25 24 25 24 23 24 24 23 22 23 21 24 24 19 11 14 Final Capacity 25 | 8 25 25 25 25 25 25 25 25 25 25 25 25 25 25 25 25 15 15 15 Final Carried 25 | 6 21 25 25 25 25 25 25 23 25 24 21 25 25 23 25 25 6 14 11 Scrap Engine Consumption 232 | . . . . . . . . . . 35 11 14 50 5 15 2 42 49 9 Constructs Created 12 | . . . . . . . . . . 1 2 . 1 1 . . 4 2 1 Constructs Modified 79 | . . . . . . . . . . 10 3 3 18 . 12 2 15 10 6 Class Distribution -------------------- 39% | Mutant 14% | Scavenger-Mutant 12% | Construct 7% | Hacker-Construct 5% | Commander-Construct 4% | Hacker-Mutant 4% | Hacker-Assassin 3% | Scavenger-Bomber Dominant Class ---------------- Mutant | -10/Materials Mutant | -10/Mines Mutant | -9/Materials Mutant | -9/Mines Mutant | -9/Exiles Mutant | -8/Mines Mutant | -8/Materials Hacker-Assassin | -7/Factory Mutant | -7/Storage Scavenger-Mutant | -7/Recycling Construct | -5/Factory Mutant | -5/Garrison Scavenger-Mutant | -5/Extension Commander-Construct | -5/Cetus Commander-Construct | -5/Archives Commander-Construct | -5/Hub_04(d) Hacker-Construct | -4/Factory Skirmisher | -3/Research Hacker-Skirmisher | -3/Quarantine Resources | -11 -10 -10 -9 -9 -9 -8 -8 -7 -7 -7 -5 -5 -5 -5 -5 -5 -4 -3 -3 ----------- Run | Yrd Mat Min Mat Min Exi Min Mat Fac Sto Rec Fac Gar Ext Cet Arc Hub Fac Res Qua Matter Collected 12310 | 252 127 81 681 20 . 22 740 776 1335 1008 474 1400 1127 115 232 98 2987 683 152 Remotely 2679 | . . . 358 20 . 22 583 . . . . 257 110 . . 23 1306 . . Salvage Created 17693 | 145 293 7 1834 269 . 25 1503 1056 1785 1502 512 1193 841 15 139 19 5428 1107 20 Parts 743 | 7 13 . 93 13 . 6 91 41 84 35 28 22 28 1 14 2 219 43 3 Haulers Intercepted 17 | . 1 . 3 . . . 1 2 4 . . . 1 . . . 2 3 . Recyclers Shooed 25 | 1 . . 1 . . . 1 . 1 9 1 . 3 . . . 8 . . Parts Field Recycled . | . . . . . . . . . . . . . . . . . . . . Retrieved Matter . | . . . . . . . . . . . . . . . . . . . . Parts Self-Destructed . | . . . . . . . . . . . . . . . . . . . . Prevented . | . . . . . . . . . . . . . . . . . . . . Kills | -11 -10 -10 -9 -9 -9 -8 -8 -7 -7 -7 -5 -5 -5 -5 -5 -5 -4 -3 -3 ------- Run | Yrd Mat Min Mat Min Exi Min Mat Fac Sto Rec Fac Gar Ext Cet Arc Hub Fac Res Qua Combat Hostiles Destroyed 387 | . 2 2 33 7 . 3 35 24 35 3 13 105 11 1 . . 96 13 4 Melee 57 | . . . 7 7 . . 8 3 1 1 2 22 . . . . 4 2 . Guns 92 | . . . 14 . . . 8 1 2 2 2 16 3 . . . 41 3 . Cannons 36 | . . . 8 . . . . . . . 2 15 1 1 . . 1 8 . AOE 199 | . . 2 4 . . 3 19 20 32 . 7 52 6 . . . 50 . 4 Classes Destroyed 23 | 2 4 1 5 . . . 1 2 2 . . 2 . . . . 3 1 . Worker 42 | . 1 . 6 . . 1 4 3 8 . 1 . 2 . . 1 13 2 . Builder 21 | . . . 1 . . . . . 2 1 3 . . . . . 14 . . Tunneler 7 | 2 1 . . . . . 1 1 . . . . . . . . 1 1 . Hauler 17 | . 1 . 3 . . . 1 2 4 . . . 1 . . . 2 3 . Recycler 47 | 1 1 . 3 1 . . 3 4 7 16 . . 1 . . . 9 1 . Mechanic 5 | . . . . . . . . . 2 . 1 . . . . . 2 . . Operator 12 | . . . 2 . . . . . 3 . . . . . 4 . 1 1 1 Watcher 15 | . 1 . 1 . . . 1 2 2 . 1 . 2 1 . . 4 . . Swarmer 29 | . . . 3 4 . 3 . . . . . 4 . . . . 9 6 . Cutter 4 | . . . . . . . . . . . . 4 . . . . . . . Saboteur 5 | . . . . . . . . . . . . . . . . . 5 . . Grunt 142 | . 2 . 21 3 . . 27 16 19 . 6 . 6 . . . 36 2 4 Brawler 14 | . . . . . . . . 1 6 . . 1 . . . . 6 . . Duelist 7 | . . . 2 . . . . . . . . 1 . . . . 4 . . Protector 2 | . . . . . . . . . 2 . . . . . . . . . . Sentry 38 | . . . 7 . . . 7 4 5 3 4 2 1 . . . 4 1 . Specialist 2 | . . . . . . . . . . . . . . . . . 2 . . Hunter 25 | . . . . . . . 1 . 1 . 1 4 1 . . . 15 2 . Programmer 24 | . . . . . . . . 3 2 . 2 2 1 . . . 14 . . Heavy 1 | . . . . . . . . . . . . . . . . . 1 . . Behemoth 4 | . . . . . . . . . . . . 1 2 . . . . 1 . Cetus Guard 1 | . . . . . . . . . . . . . . 1 . . . . . Striker 1 | . . . . . . . . . . . . . . . . . . 1 . Assembled 88 | . . 2 . . . . . . . . . 86 . . . . . . . Butcher 1 | . . . . . . . . . . . . . 1 . . . . . . Best Kill Streak 31 | 3 6 2 6 4 . 4 10 5 10 3 8 31 5 2 3 1 16 5 4 Combat Bots Only 31 | . 2 2 4 4 . 3 7 5 10 1 5 31 2 1 . . 11 4 4 Max Kills in Single Turn 7 | 1 1 1 2 1 . 2 3 3 7 1 4 6 3 1 1 1 5 1 2 Gunslinging . | . . . . . . . . . . . . . . . . . . . . Exploded 7 | . . 1 1 . . 2 2 2 7 . 2 6 2 . . . 4 . 2 Melee 1 | . . . 1 1 . . 1 1 1 1 1 1 . . . . 1 1 . Uniques/NPCs Destroyed . | . . . . . . . . . . . . . . . . . . . . Combat | -11 -10 -10 -9 -9 -9 -8 -8 -7 -7 -7 -5 -5 -5 -5 -5 -5 -4 -3 -3 -------- Run | Yrd Mat Min Mat Min Exi Min Mat Fac Sto Rec Fac Gar Ext Cet Arc Hub Fac Res Qua Hostile Shots Fired 3256 | . 11 10 138 8 . 3 250 267 132 87 80 436 88 18 7 11 1147 152 411 Missed 1184 | . 1 3 40 3 . . 73 101 59 32 22 127 22 5 3 4 424 71 194 Damage Taken 29367 | 16 138 119 992 34 . 52 2281 1714 1629 291 945 3835 796 205 126 95 11484 1643 2972 Core 3468 | 8 20 14 146 5 . . 249 457 137 19 31 478 112 16 . . 987 119 670 Absorbed by Shields 3476 | . . . . . . . 228 . . . 160 901 300 75 . 39 1187 . 586 Redirected to Shielding 221 | . . . . . . . 12 . 41 . 17 80 . . . . 71 . . Ignored by Resistances 9414 | 5 39 34 296 11 . 14 648 528 383 131 355 1459 304 76 34 39 3592 451 1015 Regen/Repaired (Parts) 5706 | . . . . . . . . 163 . . 220 733 438 . 191 . 2994 660 307 Core Remaining (%) 51 | 96 . 83 . . . 62 54 . . 12 . . . . . 36 14 . . Volleys Fired 785 | 6 12 7 75 . . 2 84 52 65 35 34 96 49 6 19 11 191 37 4 Largest 3 | 2 2 2 2 . . 1 2 2 2 2 2 2 2 2 2 2 3 3 1 Hottest 350 | 80 80 90 150 . . 33 58 102 90 70 118 105 141 65 131 59 350 253 204 Shots Fired 1338 | 12 24 10 135 . . 2 110 58 72 46 40 116 84 9 33 22 477 84 4 Gun 940 | 12 24 8 85 . . . 70 10 32 45 12 58 68 3 27 22 416 48 . Cannon 120 | . . . 37 . . . . . . . 11 31 . 2 . . 2 36 1 Launcher 249 | . . 2 13 . . 2 40 48 40 1 17 27 8 4 . . 44 . 3 Special 29 | . . . . . . . . . . . . . 8 . 6 . 15 . . Kinetic 573 | . . . . . . . 58 . 3 45 12 62 . . 18 22 323 30 . Thermal 418 | . . 4 118 . . . . 10 . . 11 27 76 5 10 . 102 54 1 Explosive 246 | . . 2 13 . . 2 40 48 40 1 17 27 8 4 . . 44 . . Electromagnetic 88 | 12 24 4 4 . . . 12 . 29 . . . . . . . . . 3 Robot Hit Streak 63 | 4 9 2 25 . . 1 19 20 43 19 16 19 21 10 5 10 63 26 6 Robot Miss Streak 3 | 1 1 2 2 . . 2 2 3 2 1 2 3 2 . 2 1 3 2 . Penetration Max 2 | . . . . . . . . . . . . 1 . . . 1 2 . . Secondary Targets 14 | . . . 2 . . . 1 . . . . . 2 . . . 9 . . Max Gunslinging Chain 1 | . . . 1 . . . 1 . . . . . 1 . . . 1 . . Shots Hit Robots 1250 | 9 19 4 123 11 . 1 118 60 59 70 38 153 81 4 22 20 372 83 3 Core Hits 1442 | 4 8 3 55 7 . 3 87 84 197 31 83 199 74 34 10 7 498 29 29 Critical Kills 5 | . . . . . . . . . . 1 . 1 . . . . 3 . . Critical Parts Destroyed 7 | . . . . . . . 1 . . . 1 1 . . . . 3 1 . Critical Strikes 54 | . . . 3 . . . 3 2 1 4 2 20 5 . . . 12 2 . Burn 10 | . . . 1 . . . . . . . . . 4 . . . 4 1 . Destroy 12 | . . . . . . . 1 . . 1 1 2 . . . . 6 1 . Blast 6 | . . . . . . . . . . . . 6 . . . . . . . Sever 25 | . . . 2 . . . 2 2 1 3 1 12 1 . . . 1 . . Impale 1 | . . . . . . . . . . . . . . . . . 1 . . Melee Attacks 293 | . . . 20 11 . . 26 27 24 34 10 93 2 . . . 12 17 17 Impact . | . . . . . . . . . . . . . . . . . . . . Slashing 277 | . . . 20 11 . . 26 27 24 34 10 93 . . . . . 17 15 Piercing 14 | . . . . . . . . . . . . . . . . . 12 . 2 Sneak Attacks 55 | . . . 6 3 . . 3 7 8 17 . . 2 . . . 1 8 . Combat Hostiles 2 | . . . . . . . . . . 2 . . . . . . . . . Follow-up Attacks . | . . . . . . . . . . . . . . . . . . . . Damage Inflicted 66290 | 176 411 132 3253 491 . 173 4570 4158 7086 2751 2323 10235 3160 857 540 492 20882 3137 1463 Guns 17254 | 102 271 47 967 . . . 975 184 316 945 286 1021 1463 57 540 492 8642 946 . Cannons 3860 | . . . 804 . . . . . . . 188 1623 . 64 . . 28 1153 . Explosions 34402 | 74 140 85 510 . . 173 2529 2747 6114 73 1632 4845 1586 736 . . 11745 . 1413 Melee 10413 | . . . 972 491 . . 1057 1227 656 1723 217 2638 . . . . 344 1038 50 Ramming 131 | . . . . . . . 9 . . 10 . 108 . . . . 4 . . Kinetic 12118 | . . . . . . . 833 . 39 945 286 2115 . . 323 492 6585 500 . Thermal 9579 | 74 140 13 1729 . . . . 227 125 . 188 529 1574 121 217 . 3043 1599 . Explosive 31768 | . . 85 510 . . 173 2529 2704 5989 73 1632 4845 1586 736 . . 10906 . . Electromagnetic 2281 | 102 271 34 42 . . . 142 . 277 . . . . . . . . . 1413 Impact . | . . . . . . . . . . . . . . . . . . . . Slashing 10069 | . . . 972 491 . . 1057 1227 656 1723 217 2638 . . . . . 1038 50 Piercing 344 | . . . . . . . . . . . . . . . . . 344 . . Highest Corruption 8 | . . . . . . . . 3 8 8 1 4 4 1 1 . 8 . 1 Average Corruption 4 | . . . . . . . . 2 5 8 1 2 2 1 1 . 4 . 1 Corruption Purged 22 | . . . . . . . . . . . 2 3 4 . 1 . 12 . . Corruption Blocked . | . . . . . . . . . . . . . . . . . . . . Effects 231 | . . . . . . . . 7 47 95 1 14 22 2 1 . 42 . . Message Errors 67 | . . . . . . . . 1 15 27 . 5 5 1 1 . 12 . . Matter Fused 51 | . . . . . . . . . 10 22 1 2 5 . . . 11 . . Heat Flow Errors 23 | . . . . . . . . 2 4 11 . . 2 . . . 4 . . Energy Discharges 26 | . . . . . . . . 1 8 9 . 2 1 1 . . 4 . . Parts Rejected 4 | . . . . . . . . . . . . 1 1 . . . 2 . . Parts Fused 3 | . . . . . . . . . . 2 . 1 . . . . . . . Data Loss (minor) 32 | . . . . . . . . 2 5 17 . 2 3 . . . 3 . . Data Loss (major) 10 | . . . . . . . . . 4 3 . . 1 . . . 2 . . Misfires 6 | . . . . . . . . . . 1 . 1 3 . . . 1 . . Alerts 7 | . . . . . . . . 1 1 3 . . 1 . . . 1 . . Weapon Failures 2 | . . . . . . . . . . . . . . . . . 2 . . Overload Shots 17 | . . . . . . . . . . . . 9 4 . . . 4 . . Overflow Damage 2230 | 5 . . 109 57 . 8 110 244 164 489 1 485 7 . . . 247 304 . Projectiles 297 | . . . 41 . . . . . . . . 256 . . . . . . . Explosions 485 | 5 . . . . . 8 57 34 108 7 . 88 7 . . . 171 . . Melee 1448 | . . . 68 57 . . 53 210 56 482 1 141 . . . . 76 304 . Knockbacks 7 | . . . . . . . . . . . . 7 . . . . . . . Impact . | . . . . . . . . . . . . . . . . . . . . Kinetic 7 | . . . . . . . . . . . . 7 . . . . . . . Secondary . | . . . . . . . . . . . . . . . . . . . . Self-Inflicted Damage 3289 | 17 39 49 40 . . 30 151 361 725 5 149 582 . . . . 1127 . 14 Shots 167 | 1 1 2 2 . . 1 10 14 39 . 11 37 . . . . 47 . 2 Rammed 12 | . . . . . . . 1 . . 1 . 10 . . . . . . . Targets Rammed 16 | . . . . . . . 1 . . 1 . 13 . . . . 1 . . Kicked 1 | . . . . . . . . . . . . . . . . . 1 . . Crushed 3 | . . . . . . . . . . . . 3 . . . . . . . Highest Temperature 450 | 68 231 90 288 . . . 313 222 277 240 162 252 70 6 1 . 357 450 52 Average Temperature 67 | 28 94 41 61 . . . 67 72 56 80 65 82 18 6 1 . 61 91 39 Received Heat Transfer 6398 | . 75 . 504 6 . . 1420 528 234 120 285 544 147 18 18 . 1941 69 489 Effects 8 | . 4 . 1 . . . . . . . . 2 . . . . . 1 . Energy Bleed 2 | . 1 . 1 . . . . . . . . . . . . . . . . Interference 5 | . 3 . . . . . . . . . . 2 . . . . . . . Short Circuit 1 | . . . . . . . . . . . . . . . . . . 1 . Siege Activations . | . . . . . . . . . . . . . . . . . . . . Robots Corrupted 2 | . 2 . . . . . . . . . . . . . . . . . . Combat Hostiles 2 | . 2 . . . . . . . . . . . . . . . . . . Parts Fried 6 | . 2 . . . . . . . 2 . . . 2 . . . . . . Impact Corruptions . | . . . . . . . . . . . . . . . . . . . . Robots Melted 1 | . . . . . . . . . . . . . 1 . . . . . . Combat Hostiles 1 | . . . . . . . . . . . . . 1 . . . . . . Parts Melted 23 | . . . 7 . . . . . . . . . 7 1 . . 8 . . Heat Transferred 14713 | 100 100 37 3478 . . . . 383 100 . 200 831 2919 211 333 . 4677 1344 . Parts Sabotaged 10 | . . . . . . . . . . . . . . . . . 9 . 1 Parts Stolen . | . . . . . . . . . . . . . . . . . . . . Parts Stripped . | . . . . . . . . . . . . . . . . . . . . Power Chain Reactions 5 | 2 1 . . . . . . . 2 . . . . . . . . . . Alert | -11 -10 -10 -9 -9 -9 -8 -8 -7 -7 -7 -5 -5 -5 -5 -5 -5 -4 -3 -3 ------- Run | Yrd Mat Min Mat Min Exi Min Mat Fac Sto Rec Fac Gar Ext Cet Arc Hub Fac Res Qua Peak Influence 2963 | 15 118 137 534 241 . 94 912 461 816 349 365 1576 725 477 332 268 2963 1519 2221 Initial 1347 | . 8 . 45 61 . . . 347 141 268 50 232 716 216 160 42 104 1347 655 Average 534 | 5 44 44 323 156 . 49 318 314 483 48 101 1049 579 416 230 163 1147 1324 1785 Maximum Alert Level 5 | . . . 2 1 . . 3 2 3 1 1 4 3 2 1 1 5 4 5 Low Security (%) 34 | 100 100 100 18 62 . 100 42 12 4 86 89 . . . 50 62 26 . . Level 1 22 | . . . 57 37 . . 15 81 23 13 10 5 2 47 49 37 1 . . Level 2 18 | . . . 24 . . . 31 6 63 . . 3 91 52 . . 4 . . Level 3 6 | . . . . . . . 10 . 8 . . 46 5 . . . 14 . . Level 4 11 | . . . . . . . . . . . . 44 . . . . 25 100 . Level 5 3 | . . . . . . . . . . . . . . . . . 20 . . High Security 1 | . . . . . . . . . . . . . . . . . 6 . . Max Security 1 | . . . . . . . . . . . . . . . . . . . 99 Squads Dispatched 114 | . 1 . 7 . . . 7 11 11 . 6 . 5 . . 2 39 5 20 Investigation 27 | . 1 . 5 . . . 4 4 2 . 1 . 1 . . . 6 3 . Extermination 12 | . . . . . . . . 3 2 . 1 . . . . . 6 . . Reinforcement 25 | . . . 2 . . . 2 4 4 . . . 3 . . 2 6 2 . Assault 45 | . . . . . . . . . 3 . 1 . 1 . . . 20 . 20 Garrison 5 | . . . . . . . 1 . . . 3 . . . . . 1 . . Intercept . | . . . . . . . . . . . . . . . . . . . . Searches Triggered . | . . . . . . . . . . . . . . . . . . . . Construction Impeded 11 | . . . . . . . 1 3 2 . . . 2 . . . 3 . . Haulers Reinforced 2 | . . . . . . . . . 1 . . . . . . 1 . . . Active Scanning Responses . | . . . . . . . . . . . . . . . . . . . . Cargo Convoy Interrupts 1 | . . . . . . . . . . . 1 . . . . . . . . Stealth | -11 -10 -10 -9 -9 -9 -8 -8 -7 -7 -7 -5 -5 -5 -5 -5 -5 -4 -3 -3 --------- Run | Yrd Mat Min Mat Min Exi Min Mat Fac Sto Rec Fac Gar Ext Cet Arc Hub Fac Res Qua Distress Signals 31 | . . 1 3 . . . 4 . 1 . . . 2 2 . 2 6 9 1 Communications Jammed . | . . . . . . . . . . . . . . . . . . . . Distress Signals . | . . . . . . . . . . . . . . . . . . . . Times Spotted 742 | . 3 4 46 7 . 3 46 25 46 2 17 132 35 9 16 4 194 26 127 Peak Tracking Total 68 | . 2 2 7 4 . 3 11 5 10 1 5 15 7 5 3 2 20 7 68 Tactical Retreats 50 | . . . 3 1 . . 3 1 . . . 18 1 . . 1 13 . 9 Traps | -11 -10 -10 -9 -9 -9 -8 -8 -7 -7 -7 -5 -5 -5 -5 -5 -5 -4 -3 -3 ------- Run | Yrd Mat Min Mat Min Exi Min Mat Fac Sto Rec Fac Gar Ext Cet Arc Hub Fac Res Qua Traps Triggered 11 | . 1 . 1 . . . . 1 2 . . 3 3 . . . . . . Indirectly . | . . . . . . . . . . . . . . . . . . . . Trap Hack Attempts . | . . . . . . . . . . . . . . . . . . . . Triggered . | . . . . . . . . . . . . . . . . . . . . Disarmed 10 | . . . . . . . . 4 . . . . . . . . 6 . . Reprogrammed . | . . . . . . . . . . . . . . . . . . . . Reused 5 | . . . . . . . . . . . . . 2 . . . 3 . . Traps Extracted . | . . . . . . . . . . . . . . . . . . . . Installed 8 | . . . . . . . . . . . . . 3 1 . . 4 . . Triggered 7 | . . . . . . . . . . . 1 . 3 . . . 3 . . Most Traps Carried 9 | . . . . . . . . . . . . 9 9 6 5 5 5 . . Machines | -11 -10 -10 -9 -9 -9 -8 -8 -7 -7 -7 -5 -5 -5 -5 -5 -5 -4 -3 -3 ---------- Run | Yrd Mat Min Mat Min Exi Min Mat Fac Sto Rec Fac Gar Ext Cet Arc Hub Fac Res Qua Machines Disabled 55 | . . . . . . . 2 10 15 . . 5 . . 3 . 15 1 4 Max in Single Turn 4 | . . . . . . . 1 4 3 . . 1 . . 1 . 3 1 1 Garrison Access 3 | . . . . . . . . . 1 . 1 . . . . . 1 . . Garrison Relay 4 | . . . . . . . . . . . . 4 . . . . . . . Machines Repaired . | . . . . . . . . . . . . . . . . . . . . Machines Dismantled 16 | . . . . . . . . 1 1 4 3 . 4 . . . 3 . . Machines Sabotaged . | . . . . . . . . . . . . . . . . . . . . Overloaded Fab Kills . | . . . . . . . . . . . . . . . . . . . . Hacking | -11 -10 -10 -9 -9 -9 -8 -8 -7 -7 -7 -5 -5 -5 -5 -5 -5 -4 -3 -3 --------- Run | Yrd Mat Min Mat Min Exi Min Mat Fac Sto Rec Fac Gar Ext Cet Arc Hub Fac Res Qua Machines Accessed 87 | . 6 . 10 . 1 . 6 12 8 10 4 1 10 . . . 12 7 . Terminals 55 | . 5 . 8 . . . 4 5 5 6 . 1 10 . . . 7 4 . Fabricators 6 | . . . . . . . . 3 . . 1 . . . . . 2 . . Repair Stations 7 | . . . . . . . . 3 1 . 1 . . . . . 1 1 . Recycling Units 9 | . 1 . . . . . . 1 1 4 1 . . . . . 1 . . Scanalyzers 4 | . . . 2 . . . 1 . . . . . . . . . . 1 . Garrison Access 5 | . . . . . . . 1 . 1 . 1 . . . . . 1 1 . Total Hacks 262 | . 17 . 30 . 1 . 22 39 23 18 14 2 36 . . . 47 13 . Successful 149 | . 11 . 17 . 1 . 14 26 10 10 11 . 16 . . . 30 3 . Failed 112 | . 6 . 12 . . . 8 13 13 8 3 2 20 . . . 17 10 . Catastrophic 15 | . 1 . . . . . 3 1 1 4 . 2 . . . . 1 2 . Database Lockouts 1 | . . . 1 . . . . . . . . . . . . . . . . Manual 153 | . 13 . 20 . 1 . 17 20 14 9 5 . 21 1 . . 30 2 . Terminals 165 | . 14 . 23 . . . 15 12 18 9 . 2 36 . . . 28 8 . Fabricators 34 | . . . . . . . . 18 . . 10 . . . . . 6 . . Repair Stations 17 | . . . . . . . . 7 2 . 1 . . . . . 6 1 . Recycling Units 20 | . 3 . . . . . . 2 2 9 2 . . . . . 2 . . Scanalyzers 16 | . . . 7 . . . 6 . . . . . . . . . . 3 . Garrison Access 9 | . . . . . . . 1 . 1 . 1 . . . . . 5 1 . Terminal Hacks 58 | . 8 . 6 . 1 . 3 5 5 2 . . 15 . . . 13 . . Part Schematic 7 | . 2 . . . . . . 1 2 . . . 2 . . . . . . Robot Schematic 8 | . 1 . 1 . . . 1 1 . . . . 3 . . . 1 . . Robot Analysis 6 | . 3 . 1 . . . 1 . . . . . 1 . . . . . . Prototype ID Bank 1 | . . . 1 . . . . . . . . . . . . . . . . Open Door 3 | . . . . . . . . . 1 . . . 2 . . . . . . Open DSF 1 | . . . . . . . . 1 . . . . . . . . . . . Branch Access Points 3 | . . . . . . . 1 1 . . . . . . . . 1 . . Terminal Index 3 | . . . . . . . . . . 1 . . . . . . 2 . . Repair Station Index 1 | . . . . . . . . . . . . . 1 . . . . . . Unreport Threat 6 | . 1 . 1 . . . . . 1 1 . . 2 . . . . . . Locate Traps 1 | . 1 . . . . . . . . . . . . . . . . . . Disarm Traps 2 | . . . . . . . . 1 . . . . . . . . 1 . . Dispatch Records 1 | . . . . . . . . . . . . . . . . . 1 . . Security Status 1 | . . . 1 . . . . . . . . . . . . . . . . Recall Investigation 1 | . . . . . . . . . . . . . . . . . 1 . . Recall Extermination 1 | . . . . . . . . . . . . . . . . . 1 . . Recall Reinforcements 1 | . . . . . . . . . . . . . . . . . 1 . . Recall Assault 1 | . . . . . . . . . . . . . . . . . 1 . . Hauler Manifests 2 | . . . 1 . . . . . . . . . 1 . . . . . . Registered Prototypes 1 | . . . . . . . . . . . . . 1 . . . . . . Zone Layout 6 | . . . . . . . . . 1 . . . 2 . . . 3 . . Derelict Proto ID Bank 1 | . . . . . 1 . . . . . . . . . . . . . . Fabricator Hacks 12 | . . . . . . . . 4 . . 7 . . . . . 1 . . Load Schematic 8 | . . . . . . . . 3 . . 4 . . . . . 1 . . Build 4 | . . . . . . . . 1 . . 3 . . . . . . . . Repair Station Hacks 6 | . . . . . . . . 4 2 . . . . . . . . . . Scan Component 4 | . . . . . . . . 3 1 . . . . . . . . . . Repair 2 | . . . . . . . . 1 1 . . . . . . . . . . Recycling Unit Hacks 5 | . 1 . . . . . . . 1 3 . . . . . . . . . Retrieve Matter 1 | . . . . . . . . . 1 . . . . . . . . . . Retrieve Components 4 | . 1 . . . . . . . . 3 . . . . . . . . . Scanalyzer 12 | . . . 6 . . . 6 . . . . . . . . . . . . Insert Component 6 | . . . 3 . . . 3 . . . . . . . . . . . . Analyze 6 | . . . 3 . . . 3 . . . . . . . . . . . . Garrison Access Hacks 4 | . . . . . . . . . 1 . 1 . . . . . 1 1 . Unlock Access 3 | . . . . . . . . . . . 1 . . . . . 1 1 . Seal Access 1 | . . . . . . . . . 1 . . . . . . . . . . Unauthorized Hacks 52 | . 2 . 5 . . . 5 13 1 5 3 . 1 . . . 15 2 . Terminals 24 | . 2 . 4 . . . 5 1 1 2 . . 1 . . . 7 1 . Track 7 | . . . 1 . . . 1 1 . . . . . . . . 4 . . Botnet 15 | . 2 . 3 . . . 3 . 1 2 . . 1 . . . 2 1 . Operators 2 | . . . . . . . 1 . . . . . . . . . 1 . . Fabricators 15 | . . . . . . . . 11 . . 2 . . . . . 2 . . Report 1 | . . . . . . . . 1 . . . . . . . . . . . Prioritize 3 | . . . . . . . . 2 . . 1 . . . . . . . . Liberate 6 | . . . . . . . . 3 . . 1 . . . . . 2 . . Fabnet 1 | . . . . . . . . 1 . . . . . . . . . . . Haulers 2 | . . . . . . . . 2 . . . . . . . . . . . Recompile 2 | . . . . . . . . 2 . . . . . . . . . . . Repair Stations 1 | . . . . . . . . . . . . . . . . . 1 . . Mechanics 1 | . . . . . . . . . . . . . . . . . 1 . . Recycling Units 7 | . . . . . . . . 1 . 3 1 . . . . . 2 . . Reject 4 | . . . . . . . . 1 . 1 1 . . . . . 1 . . Recyclers 1 | . . . . . . . . . . 1 . . . . . . . . . Mask 2 | . . . . . . . . . . 1 . . . . . . 1 . . Scanalyzers 2 | . . . 1 . . . . . . . . . . . . . . 1 . Extract 2 | . . . 1 . . . . . . . . . . . . . . 1 . Garrison Access 3 | . . . . . . . . . . . . . . . . . 3 . . Broadcast 1 | . . . . . . . . . . . . . . . . . 1 . . Restock 1 | . . . . . . . . . . . . . . . . . 1 . . Reprogram 1 | . . . . . . . . . . . . . . . . . 1 . . Data Cores Recovered 2 | . . . . . . . . . 1 . . . 1 . . . . . . Used 1 | . . . . . . . . . 1 . . . . . . . . . . Hacking Detections 76 | . 6 . 8 . . . 6 9 7 8 4 1 9 . . . 12 6 . Full Trace Events 22 | . 1 . 3 . . . 4 2 2 1 1 1 1 . . . 5 1 . Feedback Events 1 | . . . . . . . . . 1 . . . . . . . . . . Corruption 1 | . . . . . . . . . 1 . . . . . . . . . . Feedback Blocked 1 | . . . . . . . . . . . . . . . . . 1 . . Robot Schematics Acquired 8 | . 1 . 1 . . . 1 1 . . . . 3 . . . 1 . . Robots Built 4 | . . . . . . . . 1 . . 3 . . . . . . . . Authchips 2 | . . . . . . . . . . . 2 . . . . . . . . Time 174 | . . . . . . . . 58 . . 116 . . . . . . . . Total Robot Build Rating 12 | . . . . . . . . 3 . . 9 . . . . . . . . Part Schematics Acquired 19 | . 2 . 7 . . . 3 1 2 . . . 2 . . . . 2 . Parts Built 1 | . . . . . . . . . . . 1 . . . . . . . . Authchips 1 | . . . . . . . . . . . 1 . . . . . . . . Time 53 | . . . . . . . . . . . 53 . . . . . . . . Total Part Build Rating 6 | . . . . . . . . . . . 6 . . . . . . . . Parts Repaired 1 | . . . . . . . . 1 . . . . . . . . . . . Time 92 | . . . . . . . . 22 70 . . . . . . . . . . Parts Recycled . | . . . . . . . . . . . . . . . . . . . . Recycled Matter . | . . . . . . . . . . . . . . . . . . . . Retrieved Matter . | . . . . . . . . . . . . . . . . . . . . Retrieved Components 20 | . 3 . . . . . . . . 17 . . . . . . . . . Parts Scanalyzed 6 | . . . 3 . . . 3 . . . . . . . . . . . . Part Schematics Acquired 6 | . . . 3 . . . 3 . . . . . . . . . . . . Parts Damaged . | . . . . . . . . . . . . . . . . . . . . Bothacking | -11 -10 -10 -9 -9 -9 -8 -8 -7 -7 -7 -5 -5 -5 -5 -5 -5 -4 -3 -3 ------------ Run | Yrd Mat Min Mat Min Exi Min Mat Fac Sto Rec Fac Gar Ext Cet Arc Hub Fac Res Qua Used RIF Installer 2 | . . . . . . . . . . . . 2 . . . . . . . Structural Interface 1 | . . . . . . . . . . . . 1 . . . . . . . Robots Hacked 11 | . . . . . . . . . . . . . 2 . 4 . 5 . . Non-combat 10 | . . . . . . . . . . . . . 1 . 4 . 5 . . Combat 1 | . . . . . . . . . . . . . 1 . . . . . . Robot Hacks Applied 12 | . . . . . . . . . . . . . 2 . 4 . 6 . . map_walls 1 | . . . . . . . . . . . . . . . . . 1 . . purge_threat 1 | . . . . . . . . . . . . . 1 . . . . . . redirect_shields 1 | . . . . . . . . . . . . . . . . . 1 . . overload_power 1 | . . . . . . . . . . . . . . . . . 1 . . streamctrl_low 1 | . . . . . . . . . . . . . . . 1 . . . . formatsys_low 7 | . . . . . . . . . . . . . 1 . 3 . 3 . . Relay Couplers Released 25 | . . . . . . . . . . . 3 16 . . . . 6 . . Machine Destruction 21 | . . . . . . . . . . . 3 16 . . . . 2 . . Programmers 4 | . . . . . . . . . . . . . . . . . 4 . . Attached 2 | . . . . . . . . . . . . . 1 . . . 1 . . Fabnet Peak Effective % 1 | . . . . . . . . . . . 1 1 1 1 1 1 . . . Autooverrided 1 | . . . . . . . . . . . . . 1 . . . . . . Robots Rewired 10 | . . . . . . . . 1 . . . . 9 . . . . . . Allies Hacked 2 | . . . . . . . . . . . . . 2 . . . . . . Hacks Repelled 1 | . . . . . . . . . . . . . . . . . 1 . . Allies | -11 -10 -10 -9 -9 -9 -8 -8 -7 -7 -7 -5 -5 -5 -5 -5 -5 -4 -3 -3 -------- Run | Yrd Mat Min Mat Min Exi Min Mat Fac Sto Rec Fac Gar Ext Cet Arc Hub Fac Res Qua Total Allies 45 | . . 3 . . . . . 2 2 . 3 . 21 5 4 . 5 . . Largest Group 12 | . . 3 2 . . . . 1 2 . 3 . 10 11 12 11 5 . . Highest-Rated Group 688 | . . 40 32 . . . . 34 62 . 65 . 427 671 688 643 218 . . Highest-Rated Ally 159 | . . 16 16 . . . . 34 31 . 23 . 159 143 96 96 47 . . Total Orders 6 | . . . . . . . . . . . 1 . 1 . . . 4 . . STAY 2 | . . . . . . . . . . . . . 1 . . . 1 . . AID 4 | . . . . . . . . . . . 1 . . . . . 3 . . Ally Attacks 327 | . . 11 25 . . . . . 4 . 26 . 132 56 19 43 11 . . Total Damage 7414 | . . 101 317 . . . . . 84 . 381 . 3393 1316 545 1086 191 . . Kills 56 | . . 5 4 . . . . . . . 2 . 24 8 5 8 . . . Allies Corrupted . | . . . . . . . . . . . . . . . . . . . . Allies Melted . | . . . . . . . . . . . . . . . . . . . . Intel | -11 -10 -10 -9 -9 -9 -8 -8 -7 -7 -7 -5 -5 -5 -5 -5 -5 -4 -3 -3 ------- Run | Yrd Mat Min Mat Min Exi Min Mat Fac Sto Rec Fac Gar Ext Cet Arc Hub Fac Res Qua Robot Analysis Total 6 | . 3 . 1 . . . 1 . . . . . 1 . . . . . . Derelict Logs Recovered . | . . . . . . . . . . . . . . . . . . . . Drone Launches . | . . . . . . . . . . . . . . . . . . . . Drone Recoveries . | . . . . . . . . . . . . . . . . . . . . Exploration | -11 -10 -10 -9 -9 -9 -8 -8 -7 -7 -7 -5 -5 -5 -5 -5 -5 -4 -3 -3 ------------- Run | Yrd Mat Min Mat Min Exi Min Mat Fac Sto Rec Fac Gar Ext Cet Arc Hub Fac Res Qua Turns Passed 23564 | 76 554 200 2256 335 632 554 1133 2236 1769 2865 1152 1595 1872 244 758 378 3375 1183 397 Spaces Moved 12511 | 43 373 121 811 122 261 230 370 1630 763 1781 368 577 750 163 280 262 1984 1234 388 Core 14 | 10 . . . . . . . . . . . . . . . . . . 4 Treads 2356 | . . . 710 122 261 230 246 . . . . 221 176 . 13 215 162 . . Legs 5375 | . . . . . . . . 1630 763 226 368 91 337 163 148 47 1602 . . Wheels 2307 | 33 373 121 101 . . . 124 . . 1555 . . . . . . . . . Hover 534 | . . . . . . . . . . . . . 237 . 119 . 150 . 28 Flight 1925 | . . . . . . . . . . . . 265 . . . . 70 1234 356 Fastest Speed 34 | 50 100 130 123 240 240 240 120 110 110 105 105 55 87 94 94 122 50 34 43 Average Speed 134 | 88 120 130 225 240 240 240 211 111 163 131 189 160 146 94 148 123 104 55 65 Slowest Speed 480 | 100 130 130 240 240 240 240 480 113 186 372 204 223 229 94 223 163 168 279 179 Overloaded Moves 109 | . . . . . . . . . . . . 109 . . . . . . . Propulsion Burnouts . | . . . . . . . . . . . . . . . . . . . . Robots Hopped 4 | . . . . . . . . . . . . . 1 . . 1 1 1 . Cave-ins Triggered 2 | . . . . . . . 1 . 1 . . . . . . . . . . Exploration Rate (%) 50 | 4 56 37 63 32 62 52 38 34 96 99 11 53 75 55 87 21 44 29 54 Regions Visited 19 Branch Regions 11 Pre-discovered Areas 2 | . . 1 . . . . . . 1 . . . . . . . . . . Known Exits Taken 2 | . . . . . . . . 1 . . 1 . . . . . . . . Unknown Exits Taken 16 | 1 1 1 1 1 1 1 1 . 1 1 . . 1 1 1 1 1 1 . Scrap Searched 2 | . . . . 1 . 1 . . . . . . . . . . . . . Spaces Dug 62 | . . . . . . . 1 . 22 . 3 . . . . . 23 2 11 Terrain Destroyed 2471 | 12 9 21 104 . . 24 267 236 581 20 118 213 104 101 4 2 637 7 11 Melee 27 | . . . . . . . 1 . 8 . 3 . . . . . 3 2 10 Projectile 75 | . . . 4 . . . . . 2 . . 14 . . 4 2 43 5 1 AOE 2369 | 12 9 21 100 . . 24 266 236 571 20 115 199 104 101 . . 591 . . Terrain Rammed . | . . . . . . . . . . . . . . . . . . . . Walls Destroyed . | . . . . . . . . . . . . . . . . . . . . Machines Disabled . | . . . . . . . . . . . . . . . . . . . . Actions | -11 -10 -10 -9 -9 -9 -8 -8 -7 -7 -7 -5 -5 -5 -5 -5 -5 -4 -3 -3 --------- Run | Yrd Mat Min Mat Min Exi Min Mat Fac Sto Rec Fac Gar Ext Cet Arc Hub Fac Res Qua Total 17208 | 68 454 154 1095 146 270 231 577 1880 1121 2175 679 976 1396 241 588 290 2723 1643 501 Wait 2247 | . 49 16 43 14 . . 37 35 194 228 157 116 443 59 269 13 295 254 25 Move 12486 | 42 372 120 810 121 260 229 369 1629 762 1780 368 576 747 162 279 259 1982 1231 388 Hop 3 | . . . . . . . . . . . . . 1 . . 1 . 1 . Pick Up 388 | 13 17 6 59 . 5 . 22 39 23 24 9 28 21 4 8 2 54 39 15 Fast Attach . | . . . . . . . . . . . . . . . . . . . . Attach 186 | 7 . 3 6 . . . 17 17 8 13 10 24 6 2 1 . 36 23 13 Detach 15 | . . 1 . . . . . . . . 2 4 . 1 . . . 5 2 Swap 192 | . 2 1 27 . . . 9 15 17 14 10 7 23 3 8 2 38 12 4 Drop 248 | . 2 . 55 . 5 . 12 28 15 28 6 13 19 3 4 2 19 24 13 Fire 785 | 6 12 7 75 . . 2 84 52 65 35 34 96 49 6 19 11 191 37 4 Melee 293 | . . . 20 11 . . 26 27 24 34 10 93 2 . . . 12 17 17 Ram 2 | . . . . . . . 1 . . 1 . . . . . . . . . Kick 1 | . . . . . . . . . . . . . . . . . 1 . . Crush 13 | . . . . . . . . . . . . 13 . . . . . . . Escape Stasis 48 | . . . . . . . . . 5 . . 6 17 . . . . . 20 Rewire 41 | . . . . . . . . 8 . . . . 33 . . . . . . Trap 8 | . . . . . . . . . . . . . 3 1 . . 4 . . Miscellaneous 252 | . . . . . . . . 30 8 18 73 . 32 . . . 91 . . Route ------- -11/Scrapyard -10/Materials (discovered 2 exits: *Mat / [*Min]) -10/Mines -9/Materials (discovered 2 exits: *Mat / [*Min]) -9/Mines (discovered 2 exits: *Mat / *Exi) -9/Exiles -8/Mines -8/Materials -7/Factory (discovered 7 exits: [*Fac x3] / *Sto x2 / *Low x2) -7/Storage (discovered 2 exits: [*Fac] / *Rec) -7/Recycling -5/Factory -5/Garrison -5/Extension (discovered 2 exits: *Fac / *Cet) -5/Cetus (discovered 2 exits: *Fac / *Arc) -5/Archives (discovered 2 exits: *Fac / [*Hub]) -5/Hub_04(d) (discovered 2 exits: *Fac x2) -4/Factory (discovered 4 exits: *Res / *Upp x2 / Gar) -3/Research (discovered 3 exits: [*Res] / [*Qua] / Gar) -3/Quarantine History --------- Turn | Location | Event 52 | -11/Scrapyard | Discovered new exit (range 15) 77 | -11/Scrapyard | Entered Materials 313 | -10/Materials | Build established: Mutant 357 | -10/Materials | Discovered new exit (range 8) 449 | -10/Materials | Discovered new exit (range 15) 631 | -10/Materials | Entered Mines 632 | -10/Mines | Assembled infested the area 632 | -10/Mines | Learned location of Storage (-7) 727 | -10/Mines | Assisted by bots powering up and referring to "LRC-V3" 775 | -10/Mines | Discovered new exit (range 11) 831 | -10/Mines | Entered Materials 831 | -9/Materials | Accompanied by 2 allies 831 | -9/Materials | Evolved 2 slots: Propulsion x1, Utility x1 1202 | -9/Materials | Build established: Scavenger-Mutant 1512 | -9/Materials | Discovered new exit (range 7) 1662 | -9/Materials | Build established: Mutant 2606 | -9/Materials | Central database locked down 2854 | -9/Materials | Discovered new exit (range 12) 3087 | -9/Materials | Entered Mines 3099 | -9/Mines | Discovered new exit (range 4) 3413 | -9/Mines | Deemed a non-threat by the Exiles lab entrance 3413 | -9/Mines | Discovered new exit (range 5) 3422 | -9/Mines | Entered Exiles 3482 | -9/Exiles | Met 8R-AWN 3521 | -9/Exiles | Met EX-HEX 3607 | -9/Exiles | Met EX-BIN 3634 | -9/Exiles | Aligned with FarCom system 3636 | -9/Exiles | Given EX-Vault access code 3691 | -9/Exiles | Opened EX-Vault 3714 | -9/Exiles | Found Potential Leg 3717 | -9/Exiles | Found Potential Leg 3766 | -9/Exiles | Warned to stay clear of 0b10 Research branches 3845 | -9/Exiles | Met EX-DEC 4028 | -9/Exiles | Discovered new exit (range 11) 4054 | -9/Exiles | Left Exiles lab with Potential Leg 4054 | -9/Exiles | Entered Mines 4584 | -8/Mines | Discovered new exit (range 10) 4608 | -8/Mines | Entered Materials 4608 | -8/Materials | Evolved 2 slots: Propulsion x1, Utility x1 4922 | -8/Materials | Crushed by falling debris 5062 | -8/Materials | Garrison activated, responded to threat 5121 | -8/Materials | Destroyed 7 combat bots 5410 | -8/Materials | Lost 3 parts (1n1u1w) 5562 | -8/Materials | Lost 3 parts (2n1u) 5662 | -8/Materials | Discovered new exit (range 12) 5741 | -8/Materials | Entered Factory 5741 | -7/Factory | Evolved 2 slots: Propulsion x2 5768 | -7/Factory | Lost 4 parts (2n2u) 5837 | -7/Factory | Found Prototype Launcher 5839 | -7/Factory | Found Prototype Launcher 5842 | -7/Factory | Found Prototype Launcher 6019 | -7/Factory | Identified exit to Storage 6019 | -7/Factory | Identified exit to Lower Caves 6125 | -7/Factory | Discovered new exit (range 10) 6299 | -7/Factory | Identified exit to DSF 6433 | -7/Factory | Build established: Hacker-Assassin 6545 | -7/Factory | Fabricated M-28 Smith? 6864 | -7/Factory | Build established: Hacker-Mutant 7074 | -7/Factory | Discovered new exit (range 9) 7127 | -7/Factory | Lost 3 parts (2n1w) 7342 | -7/Factory | Core integrity fell below 50% 7380 | -7/Factory | Build established: Hacker-Assassin 7718 | -7/Factory | Repaired Imp. Titanium Leg 7750 | -7/Factory | Identified Rocket Array (x3) 7788 | -7/Factory | Discovered new exit (range 5) 7955 | -7/Factory | Build established: Hacker-Mutant 7977 | -7/Factory | Entered Storage 8010 | -7/Storage | Learned location of Armory (-3) 8377 | -7/Storage | First assault squad dispatched 8602 | -7/Storage | Build established: Mutant 8759 | -7/Storage | Found Rocket Array 8763 | -7/Storage | Found Rocket Array 8779 | -7/Storage | Found Rocket Array 9157 | -7/Storage | Crushed by falling debris 9157 | -7/Storage | Core integrity fell below 20% 9478 | -7/Storage | Discovered new exit (range 16) 9539 | -7/Storage | Met a pair of Derelict thieves 9600 | -7/Storage | Destroyed 10 combat bots 9737 | -7/Storage | Used back door to open Recycling access 9737 | -7/Storage | Discovered new exit (range 6) 9746 | -7/Storage | Entered Recycling 9753 | -7/Recycling | Found Scrap Engine 10131 | -7/Recycling | Build established: Scavenger-Mutant 10218 | -7/Recycling | Discovered new exit (range 14) 11782 | -7/Recycling | Build established: Construct 12611 | -7/Recycling | Entered Factory 12611 | -5/Factory | Evolved 4 slots: Power x1, Utility x3 13503 | -5/Factory | Fabricated M-28 Smith (x1) 13567 | -5/Factory | Fabricated H-55 Commando (x2) 13622 | -5/Factory | Fabricated Adv. Hacking Suite (x1) 13728 | -5/Factory | Cargo convoy interrupted 13763 | -5/Factory | Identified exit to Garrison 13763 | -5/Factory | Entered Garrison 13823 | -5/Garrison | Spotted B-75 Beast 13831 | -5/Garrison | Triggered checkpoint 13831 | -5/Garrison | Triggered checkpoint 13855 | -5/Garrison | Destroyed B-75 Beast 13876 | -5/Garrison | Destroyed 9 combat bots 13890 | -5/Garrison | Triggered checkpoint 13890 | -5/Garrison | Triggered checkpoint 13999 | -5/Garrison | Triggered checkpoint 14011 | -5/Garrison | Discovered new exit (range 10) 14199 | -5/Garrison | Assembled breached garrison interior 14280 | -5/Garrison | Installed Relay Interface Framework 14289 | -5/Garrison | Garrison Relay disabled 14351 | -5/Garrison | Expanded RIF knowledge: Structural Interface 14531 | -5/Garrison | Build established: Mutant 14757 | -5/Garrison | Destroyed 8 combat bots 14838 | -5/Garrison | Destroyed 11 combat bots 14979 | -5/Garrison | Destroyed 31 combat bots 15035 | -5/Garrison | Lost 7 parts (1n5u1w) 15069 | -5/Garrison | Core integrity fell below 50% 15092 | -5/Garrison | Destroyed 12 combat bots 15126 | -5/Garrison | Garrison Relay disabled 15358 | -5/Garrison | Entered Extension 15492 | -5/Extension | Build established: Scavenger-Mutant 15576 | -5/Extension | Rescued A7 15611 | -5/Extension | Rescued a captive Derelict 15612 | -5/Extension | Rescued a captive Derelict 15658 | -5/Extension | First assault squad dispatched 15914 | -5/Extension | Rescued a captive Derelict 15915 | -5/Extension | Rescued a captive Derelict 16208 | -5/Extension | Disrupted transfer network 16455 | -5/Extension | Rescued a captive Derelict 16456 | -5/Extension | Rescued a captive Derelict 16495 | -5/Extension | Rescued a captive Derelict 16496 | -5/Extension | Rescued a captive Derelict 16566 | -5/Extension | Spotted B-75 Beast 16584 | -5/Extension | Spotted B-75 Beast 16589 | -5/Extension | Destroyed B-75 Beast 16596 | -5/Extension | Destroyed B-75 Beast 16623 | -5/Extension | Lost 5 allies 16729 | -5/Extension | Discovered new exit (range 15) 16730 | -5/Extension | Discovered new exit (range 15) 16839 | -5/Extension | Rescued a captive Derelict 17230 | -5/Extension | Entered Cetus 17230 | -5/Cetus | Accompanied by 8 allies (A7) 17235 | -5/Cetus | Acquired a Cetus Manufacturing Module code from A7 17245 | -5/Cetus | Spotted Cetus Guard 17245 | -5/Cetus | Spotted Cetus Guard 17246 | -5/Cetus | Spotted Cetus Guard 17250 | -5/Cetus | Spotted Cetus Guard 17255 | -5/Cetus | Allies destroyed Cetus Guard 17258 | -5/Cetus | Allies destroyed Cetus Guard 17261 | -5/Cetus | Allies destroyed Cetus Guard 17262 | -5/Cetus | Destroyed Cetus Guard 17298 | -5/Cetus | Started Cetus Manufacturing Module 17311 | -5/Cetus | Discovered new exit (range 15) 17323 | -5/Cetus | Manufactured an Enhanced Grunt 17331 | -5/Cetus | Spotted Cetus Guard 17331 | -5/Cetus | Spotted Cetus Guard 17346 | -5/Cetus | Spotted Cetus Guard 17346 | -5/Cetus | Spotted Cetus Guard 17348 | -5/Cetus | Manufactured an Enhanced Grunt 17351 | -5/Cetus | Extracted ID and sensor layout for unrecognized location from A7's data core 17354 | -5/Cetus | Allies destroyed Cetus Guard 17356 | -5/Cetus | Allies destroyed Cetus Guard 17363 | -5/Cetus | Allies destroyed Cetus Guard 17369 | -5/Cetus | Discovered new exit (range 16) 17373 | -5/Cetus | Manufactured an Enhanced Grunt 17386 | -5/Cetus | Met Revision 17 17398 | -5/Cetus | Manufactured an Enhanced Grunt 17423 | -5/Cetus | Manufactured an Enhanced Grunt 17474 | -5/Cetus | Entered Archives 17474 | -5/Archives | Accompanied by 11 allies 17535 | -5/Archives | Discovered new exit (range 16) 17537 | -5/Archives | Lost 3 allies 17544 | -5/Archives | Discovered new exit (range 15) 17572 | -5/Archives | Unable to access archive contents 17662 | -5/Archives | Build established: Commander-Construct 18232 | -5/Archives | Entered Hub_04(d) 18232 | -5/Hub_04(d) | Accompanied by 11 allies 18232 | -5/Hub_04(d) | Discovered new exit (range 10) 18373 | -5/Hub_04(d) | Lost 3 allies 18580 | -5/Hub_04(d) | Discovered new exit (range 5) 18610 | -5/Hub_04(d) | Entered Factory 18610 | -4/Factory | Accompanied by 4 allies 18610 | -4/Factory | Evolved 2 slots: Utility x1, Weapon x1 18853 | -4/Factory | Build established: Hacker-Construct 18897 | -4/Factory | Identified exit to Garrison 19197 | -4/Factory | Garrison activated, responded to threat 19601 | -4/Factory | Destroyed 11 combat bots 19610 | -4/Factory | First assault squad dispatched 19742 | -4/Factory | Destroyed 7 combat bots 19835 | -4/Factory | Discovered new exit (range 6) 19927 | -4/Factory | Identified exit to Upper Caves 20315 | -4/Factory | Lost 3 parts (1p1n1u) 20319 | -4/Factory | Destroyed 7 combat bots 20665 | -4/Factory | Build established: Scavenger-Bomber 21016 | -4/Factory | Core integrity fell below 50% 21033 | -4/Factory | Destroyed 8 combat bots 21198 | -4/Factory | Lost 4 parts (2p1u1w) 21279 | -4/Factory | Found Quantum Capacitor 21300 | -4/Factory | Lost 3 parts (1n1u1w) 21343 | -4/Factory | Destroyed 9 combat bots 21477 | -4/Factory | Build established: Mutant 21526 | -4/Factory | Lost 3 parts (1n1u1w) 21754 | -4/Factory | High security lockdown imminent 21786 | -4/Factory | Core integrity fell below 20% 21834 | -4/Factory | High security lockdown engaged 21965 | -4/Factory | Lost 3 parts (2u1w) 21985 | -4/Factory | Entered Research 21985 | -3/Research | Evolved 2 slots: Utility x1, Weapon x1 22015 | -3/Research | Identified exit to Garrison 22026 | -3/Research | Discovered new exit (range 11) 22185 | -3/Research | Revision forces began assault on 0b10 22373 | -3/Research | Met up with Revision 17++ 22567 | -3/Research | Build established: Skirmisher 22685 | -3/Research | Research terminal network offline 22872 | -3/Research | Spotted B-86 Titan 22995 | -3/Research | Destroyed B-86 Titan 23000 | -3/Research | Spotted Striker 23014 | -3/Research | Destroyed Striker 23059 | -3/Research | Discovered new exit (range 22) 23150 | -3/Research | Spotted Executioner 23151 | -3/Research | Spotted Striker 23168 | -3/Research | Entered Quarantine 23169 | -3/Quarantine | Maximum security lockdown engaged 23259 | -3/Quarantine | Found Alien Artifact 23320 | -3/Quarantine | Found Prototype Device 23325 | -3/Quarantine | Found Alien Artifact 23326 | -3/Quarantine | Identified Dimensional Node Initializer 23326 | -3/Quarantine | Initialized slip node 23329 | -3/Quarantine | Found Dimensional Node Initializer 23422 | -3/Quarantine | Found Alien Artifact 23423 | -3/Quarantine | Identified Subatomic Replicator 23476 | -3/Quarantine | Found Imp. Powered Armor 23532 | -3/Quarantine | Spotted Investigator 23535 | -3/Quarantine | Scanned by Researcher 23541 | -3/Quarantine | Core integrity fell below 50% 23556 | -3/Quarantine | Spotted Executioner 23557 | -3/Quarantine | Spotted Investigator 23565 | -3/Quarantine | Self-destructed Last Messages --------------- 23559_ Stasis bubble strength at 84. 23560_ Stasis bubble strength at 77. 23560_ The unstable cave ceiling collapses. 23560_ G-73 Enforcer crushed by falling debris. 23561_ P-80 Master resets G-67 Veteran, system corruption cleaned. 23561_ P-80 Master resets Investigator, system corruption cleaned. 23561_ Stasis bubble strength at 70. 23562_ Stasis bubble strength at 63. 23562_ G-67 Veteran misfires. 23562_ P-80 Master resets H-77 Assassin, system corruption cleaned. 23563_ P-80 Master resets G-67 Veteran, system corruption cleaned. 23564_ Stasis bubble strength at 56. 23564_ Slug penetrates G-73 Enforcer. 23564_ M-36 Artificer repairs G-67 Veteran. 23565_ G-73 Enforcer destroyed. 23565_ Critical hit (Burn: +25). Map ----- +----------------------------------------------------+ | #??# #?????????????????# #?? ????????????? | | ???# #???????????????########/##?? ????????????? | | ???# #????????+#?????# /?? ????????????? | | ???#+######??? ?????# """" ##? ????????????? | | ???# #??? #?????# ""R"" #?? ????????????? | | ???# #??? #?????# "" "" #??# #????????????? | | ???# ! #??? #?????# #??# #????????????? | | #### " / #??? #?????#!| #??# #????????????? | | + "" #??? #?????#| #??# #??###???????? | | #### "" #??? #?????#| #### ### #???????? | | #??# "" #### ###########/###### #???????? | | #### " # ##### #???????? | | # "" # c #??????????? | | "" # "" # " Y ##### #??????????? | | "" # "" / %"###############???# #??????????? | | "" # " #%" #?????????????????## ##??????????? | | # #" ########???????????# ##??????????? | | ######## ## ###?????????# "##?????????? | | ########## g i # #?????????#b # ##????????? | | " = "%" T"% g# # ###???????# ##"#########? | | =% " " # # ######???#E ### #? | | [ # #bgl g #" #?### ### #? | | ########## p #ggbggi## ### # "" #? | | ???????#####+## g# lg gx##m ;##C % # """ #? | | ???????# gg gg hggl# b gi%g # "/" #? | | ???????# ! b g Yimige/@ gp pT + """ #? | | ???????# l g g g[#gx gg g i # "" #? | | ???????# """ " !!g cbb;###### # #? | | ???????# """ #####g####????# # #? | | ???????# """ """#?????????????####+#############? | | ???????# "" #??????????????? ???????????? | | ???????#! ! #????????????? ?????????? | | ???????###########??????????? ???????? | | ????????????????????????????# """ #??????? | | ????????????????????????????# " " #??????? | | ????????????????????????????# """ #??????? | | ????????????????????????????# #??????? | | ????????????????????????????# """""" #??????? | | ????????????????????????????# """""" #??????? | | ????????????????????????????# """""" #??????? | | ????????????????????????????# ??? #??????? | | ????????????????????????????###???#########??????? | | | | | | | | | | | | | | | | | +----------------------------------------------------+ Best States ------------- Heat Dissipation 93 Coolant Potential 100 Energy Generation 40 Energy Capacity 703 Matter Stores 460 Matter Capacity 500 Sight Range 22 Terrain Scan Range 24 Terrain Scan Density 110 Additional Mass Support 20 Armor Coverage 600 Resistance: KI 20 Resistance: TH 30 Resistance: EX 20 Resistance: EM 35 Resistance: I 20 Resistance: S 20 Resistance: P 20 Core Shielding 30 Weapon Shielding 66 Point Defense Rating 240 Melee Speed Boost 20 Phase Shifting 5 Evasion (%) 69 Targeting Accuracy 6 Launcher Accuracy 30 Target Analysis 6 Core Analysis 6 Recoil Reduction 6 Salvage Targeting 3 Offensive Hacking 58 Defensive Hacking 12 Relay Coupler Types 1 Relay Coupler Value 42 Authchip Count 5 Trap Extractor Capacity 6 Item Schematics ----------------- Wheel | -10/Materials | Hacked Hcp. Storage Unit | -10/Materials | Hacked Rocket Launcher | -9/Materials | Scanalyzed VTOL Module | -9/Materials | Extracted Plasma Cutter | -9/Materials | Extracted Grenade Launcher | -9/Materials | Extracted Particle Gun | -9/Materials | Extracted Hacking Suite | -9/Materials | Scanalyzed Imp. Ion Engine | -9/Materials | Scanalyzed Hpw. Tractor Beam | -8/Materials | Scanalyzed Imp. Grenade Launcher | -8/Materials | Scanalyzed Hcp. Matter Pod | -8/Materials | Scanalyzed Adv. Hacking Suite | -7/Factory | Hacked Arm. Huge Wheel | -7/Storage | Hacked Coil Gun | -7/Storage | Hacked Impulse Thruster | -5/Extension | Hacked Impulse Thruster Array | -5/Extension | Hacked Kinecellerator | -3/Research | Extracted Thermal Shield | -3/Research | Extracted Robot Schematics ------------------ M-13 Machinist | -10/Materials | Hacked O-16 Technician | -9/Materials | Hacked M-28 Smith | -8/Materials | Hacked H-55 Commando | -7/Factory | Hacked H-66 Slayer | -5/Extension | Hacked O-24 Administrator | -5/Extension | Hacked G-50 Soldier | -5/Extension | Hacked M-36 Artificer | -4/Factory | Hacked Fabricated ------------ M-28 Smith | x1 | -7/Factory | Preloaded M-28 Smith | x1 | -5/Factory | Authchip H-55 Commando | x2 | -5/Factory | Authchip Adv. Hacking Suite | x1 | -5/Factory | Authchip Alien Tech Used ----------------- Dimensional Node Initializer Subatomic Replicator Achievements -------------- None Challenges ------------ None Game ------ Seed GreatGrapheneTreads Manual? 0 Play Time 04:27:55 Cumulative 535.3 hours Start 2024.08.02 @ 17:40:36 End 2024.08.02 @ 22:18:44 Sessions 1 Manual Loads 0 Difficulty Adventurer Special Mode None Game No. 97 Rogue 0 Adventurer 97 Explorer 0 Win Type - Total 7 Types 4/0/1/2/0/0/0/0/0 Lore% 61 Gallery% 82 Achievement% 69 Wizard Run 0 Options --------- Layout 2 ASCII 0 Keyboard 0 Movement Mouse Keybinds 0 Fullscreen 1 Font 24/Smallcaps Map View 50x49 Zoom Use 1% Tactical HUD 1 Map Filters NONE Filters NONE Steam 1 RUN: 25c336d1-0162-4513-adc4-fd9e201f276e